[Event "EYCC 2017"]
[Site "Mamaia"]
[Date "2017.09.08"]
[Round "4"]
[White "Henderson de La Fuente, Lance"]
[Black "Ognean, Mihnea-Ionut"]
[Result "1-0"]
[ECO "B33"]
[WhiteElo "2408"]
[BlackElo "2166"]
[Annotator "NA"]
[PlyCount "83"]
[EventDate "2017.??.??"]
[EventType "swiss"]
[EventCountry "ROU"]
[SourceTitle "playchess.com"]
[Source "ChessBase"]
[SourceQuality "1"]
[TimeControl "40/5400+30:1800+30"]

1. e4 {[%emt 0:00:00]} c5 {[%emt 0:00:08]} 2. Nf3 {[%emt 0:00:35]} Nc6 {[%emt 0:00:05]} 3. d4 {[%emt 0:00:24]} cxd4 {[%emt 0:00:06]} 4. Nxd4 {[%emt 0:00:06]} Nf6 {[%emt 0:00:06]} 5. Nc3 {[%emt 0:00:17]} e5 {[%emt 0:00:31]} 6. Ndb5 {[%emt 0:00:14]} d6 {[%emt 0:00:07]} 7. Bg5 {[%emt 0:00:22]} a6 {[%emt 0:00:34]} 8. Na3 {[%emt 0:00:41]} b5 {[%emt 0:00:06]} 9. Nd5 {[%emt 0:00:13]} Be7 {[%emt 0:00:10]} 10. Bxf6 {[%emt 0:00:21]} Bxf6 {[%emt 0:00:06]} 11. c3 {[%emt 0:00:19]} Bg5 {[%emt 0:00:06]} 12. Nc2 {[%emt 0:00:08]} Rb8 {[%emt 0:00:04]} 13. a4 {[%emt 0:00:05]} bxa4 {[%emt 0:00:09]} 14. Ncb4 {[%emt 0:00:23]} Nxb4 {[%emt 0:00:11]} 15. cxb4 {[%emt 0:00:11]} Bd7 {[%emt 0:00:31]} 16. Bxa6 {[%emt 0:00:15]} O-O {[%emt 0:00:09]} 17. O-O {[%emt 0:01:27]} Kh8 {[%emt 0:00:59]} 18. Bc4 {[%emt 0:15:05]} f5 {[%emt 0:10:18]} 19. exf5 {[%emt 0:00:29]} Rxf5 {[%emt 0:00:40]} 20. Qd3 {[%emt 0:09:40]} Bh6 {[%emt 0:11:53]} 21. b5 {[%emt 0:02:43]} Qh4 {[%emt 0:08:18]} 22. Rxa4 {[%emt 0:03:40]} Rbf8 {[%emt 0:03:43]} 23. Bb3 {[%emt 0:11:02]} Bf4 {[%emt 0:10:09]} 24. h3 {[%emt 0:18:53]} Rg5 {[%emt 0:18:59]} 25. Kh1 {[%emt 0:00:24]} Qh6 {[%emt 0:06:23]} 26. Rfa1 {[%emt 0:06:57]} Bxh3 {[%emt 0:18:10]} 27. Qxh3 {[%emt 0:07:42]} Rh5 {[%emt 0:00:07]} 28. Nxf4 {[%emt 0:00:06]} exf4 {[%emt 0:00:39]} 29. Ra8 {[%emt 0:00:49]} Rxh3+ {[%emt 0:00:57]} 30. gxh3 {[%emt 0:00:01]} Qxh3+ {[%emt 0:01:53]} 31. Kg1 {[%emt 0:00:01]} Qg4+ {[%emt 0:01:57]} 32. Kf1 {[%emt 0:00:20]} Qh3+ {[%emt 0:00:17]} 33. Kg1 {[%emt 0:00:46]} Qg4+ {[%emt 0:02:20]} 34. Kf1 {[%emt 0:00:29]} Qh3+ {[%emt 0:00:25]} 35. Ke2 {[%emt 0:07:40]} f3+ {[%emt 0:00:38]} 36. Kd2 {[%emt 0:02:20]} Qh6+ {[%emt 0:00:22]} 37. Kd1 {[%emt 0:00:46]} g5 {[%emt 0:02:37]} 38. b6 {[%emt 0:00:41]} Qf6 {[%emt 0:03:08]} 39. Rxf8+ {[%emt 0:01:21]} Qxf8 {[%emt 0:00:05]} 40. b7 {[%emt 0:00:00]} Kg7 {[%emt 0:00:16]} 41. Ra8 {[%emt 0:00:15]} Qf5 {[%emt 0:00:44]} 42. b8=Q {[%emt 0:00:39]} 1-0

[Event "EYCC 2017"]
[Site "Mamaia"]
[Date "2017.09.08"]
[Round "4"]
[White "Haria, Ravi"]
[Black "Sevgi, Volkan"]
[Result "1/2-1/2"]
[ECO "A05"]
[WhiteElo "2398"]
[BlackElo "2240"]
[Annotator "NA"]
[PlyCount "126"]
[EventDate "2017.??.??"]
[EventType "swiss"]
[EventCountry "ROU"]
[SourceTitle "playchess.com"]
[Source "ChessBase"]
[SourceQuality "1"]
[TimeControl "40/5400+30:1800+30"]

1. Nf3 {[%emt 0:00:00]} Nf6 {[%emt 0:00:08]} 2. g3 {[%emt 0:00:00]} b6 {[%emt 0:00:02]} 3. Bg2 {[%emt 0:00:06]} Bb7 {[%emt 0:00:01]} 4. c4 {[%emt 0:00:15]} e6 {[%emt 0:00:05]} 5. O-O {[%emt 0:01:23]} Be7 {[%emt 0:00:05]} 6. b3 {[%emt 0:00:07]} O-O {[%emt 0:00:23]} 7. Bb2 {[%emt 0:00:06]} d5 {[%emt 0:00:13]} 8. e3 {[%emt 0:02:28]} c5 {[%emt 0:01:23]} 9. Qe2 {[%emt 0:08:33]} Nc6 {[%emt 0:01:24]} 10. d3 {[%emt 0:09:55]} Qc7 {[%emt 0:02:48]} 11. Nc3 {[%emt 0:00:08]} Rad8 {[%emt 0:03:51]} 12. Rad1 {[%emt 0:00:50]} a6 {[%emt 0:02:00]} 13. Ne1 {[%emt 0:20:45]} Rfe8 {[%emt 0:11:22]} 14. g4 {[%emt 0:02:26]} d4 {[%emt 0:01:04]} 15. Ne4 {[%emt 0:04:19]} Nxe4 {[%emt 0:02:01]} 16. Bxe4 {[%emt 0:00:18]} f5 {[%emt 0:01:12]} 17. Bg2 {[%emt 0:09:54]} Bd6 {[%emt 0:02:48]} 18. h3 {[%emt 0:00:37]} fxg4 {[%emt 0:10:09]} 19. Qxg4 {[%emt 0:04:13]} Ne5 {[%emt 0:00:32]} 20. Qh5 {[%emt 0:04:24]} Rf8 {[%emt 0:05:48]} 21. f4 {[%emt 0:09:38]} Ng6 {[%emt 0:01:00]} 22. f5 {[%emt 0:04:59]} dxe3 {[%emt 0:03:56]} 23. Bxb7 {[%emt 0:01:53]} Nf4 {[%emt 0:00:21]} 24. Rxf4 {[%emt 0:01:54]} Bxf4 {[%emt 0:00:09]} 25. Be4 {[%emt 0:01:35]} g6 {[%emt 0:02:22]} 26. Qe2 {[%emt 0:05:10]} gxf5 {[%emt 0:01:03]} 27. Qg2+ {[%emt 0:03:06]} Bg3 {[%emt 0:00:07]} 28. Bf3 {[%emt 0:01:54]} Kf7 {[%emt 0:00:12]} 29. Bh5+ {[%emt 0:01:13]} Ke7 {[%emt 0:00:07]} 30. Nf3 {[%emt 0:00:34]} Rg8 {[%emt 0:00:12]} 31. Kf1 {[%emt 0:00:06]} Bf4 {[%emt 0:01:08]} 32. Qh1 {[%emt 0:01:01]} Rg3 {[%emt 0:01:53]} 33. Bc3 {[%emt 0:00:19]} Rdg8 {[%emt 0:03:40]} 34. Be1 {[%emt 0:00:07]} R3g7 {[%emt 0:02:35]} 35. d4 {[%emt 0:00:24]} Bg3 {[%emt 0:01:36]} 36. d5 {[%emt 0:01:44]} Qf4 {[%emt 0:00:20]} 37. d6+ {[%emt 0:00:41]} Kd8 {[%emt 0:00:25]} 38. Bc3 {[%emt 0:01:07]} Qe4 {[%emt 0:02:49]} 39. Bf6+ {[%emt 0:00:27]} Kc8 {[%emt 0:00:08]} 40. Qg2 {[%emt 0:00:00]} Rd7 {[%emt 0:11:52]} 41. Be7 {[%emt 0:13:33]} Rg7 {[%emt 0:10:27]} 42. Ne1 {[%emt 0:03:10]} Qf4+ {[%emt 0:06:00]} 43. Ke2 {[%emt 0:01:20]} Kb8 {[%emt 0:08:42]} 44. Qf3 {[%emt 0:07:00]} Qe5 {[%emt 0:01:33]} 45. Qxe3 {[%emt 0:00:36]} Qb2+ {[%emt 0:00:49]} 46. Qd2 {[%emt 0:00:18]} Qe5+ {[%emt 0:00:08]} 47. Qe3 {[%emt 0:00:05]} Qb2+ {[%emt 0:00:03]} 48. Rd2 {[%emt 0:02:00]} Qb1 {[%emt 0:00:27]} 49. Ng2 {[%emt 0:03:17]} Bxd6 {[%emt 0:00:31]} 50. Bxd6+ {[%emt 0:00:36]} Rxd6 {[%emt 0:00:05]} 51. Bf3 {[%emt 0:01:35]} Rxd2+ {[%emt 0:02:01]} 52. Qxd2 {[%emt 0:00:10]} Kc7 {[%emt 0:01:20]} 53. Nf4 {[%emt 0:01:40]} Re7 {[%emt 0:00:02]} 54. Qc3 {[%emt 0:01:15]} Qg1 {[%emt 0:00:22]} 55. Qe5+ {[%emt 0:00:59]} Kd7 {[%emt 0:00:01]} 56. Qb8 {[%emt 0:00:14]} Qd4 {[%emt 0:01:33]} 57. Nd3 {[%emt 0:01:23]} e5 {[%emt 0:01:05]} 58. Qxb6 {[%emt 0:00:19]} e4 {[%emt 0:01:43]} 59. Nxc5+ {[%emt 0:00:19]} Kc8 {[%emt 0:00:02]} 60. Qxa6+ {[%emt 0:00:46]} Kc7 {[%emt 0:05:08]} 61. Ne6+ {[%emt 0:00:38]} Rxe6 {[%emt 0:00:05]} 62. Qxe6 {[%emt 0:00:01]} Qd3+ {[%emt 0:00:11]} 63. Ke1 {[%emt 0:00:19]} Qxf3 {[%emt 0:00:20]} 1/2-1/2

[Event "EYCC 2017"]
[Site "Mamaia"]
[Date "2017.09.08"]
[Round "4"]
[White "Tica, Sven"]
[Black "Akhvlediani, Irakli"]
[Result "1/2-1/2"]
[ECO "A45"]
[WhiteElo "2389"]
[BlackElo "2303"]
[Annotator "NA"]
[PlyCount "82"]
[EventDate "2017.??.??"]
[EventType "swiss"]
[EventCountry "ROU"]
[SourceTitle "playchess.com"]
[Source "ChessBase"]
[SourceQuality "1"]
[TimeControl "40/5400+30:1800+30"]

1. d4 {[%emt 0:00:00]} Nf6 {[%emt 0:00:06]} 2. g3 {[%emt 0:00:00]} g6 {[%emt 0:00:12]} 3. Bg2 {[%emt 0:00:00]} Bg7 {[%emt 0:00:04]} 4. Nf3 {[%emt 0:00:33]} O-O {[%emt 0:00:06]} 5. O-O {[%emt 0:00:24]} d6 {[%emt 0:00:04]} 6. b3 {[%emt 0:00:09]} c5 {[%emt 0:00:04]} 7. c4 {[%emt 0:00:07]} e5 {[%emt 0:00:54]} 8. dxe5 {[%emt 0:08:52]} dxe5 {[%emt 0:01:24]} 9. Bb2 {[%emt 0:01:15]} e4 {[%emt 0:01:22]} 10. Ng5 {[%emt 0:03:05]} Qe7 {[%emt 0:01:53]} 11. f3 {[%emt 0:10:56]} exf3 {[%emt 0:05:34]} 12. Nxf3 {[%emt 0:00:07]} Nc6 {[%emt 0:02:33]} 13. Nc3 {[%emt 0:01:19]} Rd8 {[%emt 0:07:33]} 14. Qc1 {[%emt 0:01:26]} Bf5 {[%emt 0:18:55]} 15. Nh4 {[%emt 0:25:45]} Bg4 {[%emt 0:02:54]} 16. Qf4 {[%emt 0:11:30]} Nd4 {[%emt 0:08:50]} 17. e4 {[%emt 0:08:11]} Be6 {[%emt 0:21:24]} 18. Rae1 {[%emt 0:05:51]} Nc2 {[%emt 0:10:35]} 19. Re2 {[%emt 0:00:21]} Nd4 {[%emt 0:01:56]} 20. Ree1 {[%emt 0:00:10]} Nc2 {[%emt 0:00:07]} 21. Re2 {[%emt 0:01:39]} Nh5 {[%emt 0:01:21]} 22. Qc1 {[%emt 0:00:55]} Bd4+ {[%emt 0:00:04]} 23. Kh1 {[%emt 0:00:47]} Nb4 {[%emt 0:00:07]} 24. Rd2 {[%emt 0:04:49]} Nc6 {[%emt 0:08:59]} 25. Nf3 {[%emt 0:05:28]} Qd7 {[%emt 0:04:39]} 26. Nxd4 {[%emt 0:01:37]} cxd4 {[%emt 0:00:58]} 27. Nb5 {[%emt 0:00:40]} Bh3 {[%emt 0:00:34]} 28. Nxd4 {[%emt 0:01:50]} Bxg2+ {[%emt 0:00:03]} 29. Kxg2 {[%emt 0:00:11]} Qg4 {[%emt 0:00:17]} 30. Qe1 {[%emt 0:02:47]} Nxd4 {[%emt 0:01:11]} 31. Bxd4 {[%emt 0:00:06]} Re8 {[%emt 0:00:13]} 32. e5 {[%emt 0:01:05]} Rad8 {[%emt 0:00:22]} 33. Bxa7 {[%emt 0:01:23]} Rxd2+ {[%emt 0:00:05]} 34. Qxd2 {[%emt 0:00:06]} Qe4+ {[%emt 0:01:00]} 35. Rf3 {[%emt 0:00:20]} Rxe5 {[%emt 0:00:37]} 36. Qd8+ {[%emt 0:01:05]} Kg7 {[%emt 0:00:39]} 37. Bd4 {[%emt 0:00:32]} Qe2+ {[%emt 0:00:04]} 38. Rf2 {[%emt 0:00:04]} Nf4+ {[%emt 0:00:05]} 39. gxf4 {[%emt 0:01:15]} Qg4+ {[%emt 0:00:03]} 40. Kf1 {[%emt 0:00:00]} Qd1+ {[%emt 0:00:03]} 41. Kg2 {[%emt 0:00:22]} Qg4+ {[%emt 0:00:05]} 1/2-1/2

[Event "EYCC 2017"]
[Site "Mamaia"]
[Date "2017.09.08"]
[Round "4"]
[White "Kharitonov, Egor"]
[Black "Valtemara, Mattia Angelo"]
[Result "1-0"]
[ECO "D11"]
[WhiteElo "2387"]
[BlackElo "1910"]
[Annotator "NA"]
[PlyCount "107"]
[EventDate "2017.??.??"]
[EventType "swiss"]
[EventCountry "ROU"]
[SourceTitle "playchess.com"]
[Source "ChessBase"]
[SourceQuality "1"]
[TimeControl "40/5400+30:1800+30"]

1. d4 {[%emt 0:00:00]} d5 {[%emt 0:00:17]} 2. c4 {[%emt 0:00:00]} c6 {[%emt 0:00:17]} 3. Nf3 {[%emt 0:00:00]} Nf6 {[%emt 0:00:22]} 4. Qc2 {[%emt 0:00:00]} g6 {[%emt 0:05:10]} 5. Bf4 {[%emt 0:00:28]} Bf5 {[%emt 0:03:07]} 6. Qc1 {[%emt 0:01:30]} Bg7 {[%emt 0:02:04]} 7. e3 {[%emt 0:00:44]} Nbd7 {[%emt 0:02:20]} 8. Nc3 {[%emt 0:00:23]} O-O {[%emt 0:03:40]} 9. h3 {[%emt 0:03:03]} h5 {[%emt 0:04:30]} 10. Be2 {[%emt 0:00:13]} dxc4 {[%emt 0:07:31]} 11. Bxc4 {[%emt 0:02:17]} c5 {[%emt 0:02:08]} 12. O-O {[%emt 0:02:41]} Nb6 {[%emt 0:04:41]} 13. Bb3 {[%emt 0:03:41]} cxd4 {[%emt 0:05:05]} 14. Nxd4 {[%emt 0:00:49]} Qc8 {[%emt 0:02:17]} 15. Nxf5 {[%emt 0:04:45]} Qxf5 {[%emt 0:00:48]} 16. Rd1 {[%emt 0:01:40]} e5 {[%emt 0:05:25]} 17. Bg3 {[%emt 0:05:16]} Rfd8 {[%emt 0:03:48]} 18. Rd2 {[%emt 0:07:29]} Rac8 {[%emt 0:06:19]} 19. Qd1 {[%emt 0:02:00]} Rxd2 {[%emt 0:01:08]} 20. Qxd2 {[%emt 0:00:08]} Ne4 {[%emt 0:01:32]} 21. Nxe4 {[%emt 0:00:36]} Qxe4 {[%emt 0:00:34]} 22. Rd1 {[%emt 0:07:16]} Qc6 {[%emt 0:02:39]} 23. Qa5 {[%emt 0:06:06]} Qc7 {[%emt 0:05:23]} 24. e4 {[%emt 0:15:52]} Bf6 {[%emt 0:05:24]} 25. h4 {[%emt 0:02:37]} Kg7 {[%emt 0:01:35]} 26. Rd3 {[%emt 0:01:13]} Nc4 {[%emt 0:11:34]} 27. Qxa7 {[%emt 0:08:58]} Nxb2 {[%emt 0:00:34]} 28. Rf3 {[%emt 0:04:20]} b5 {[%emt 0:04:31]} 29. Qa6 {[%emt 0:02:15]} Qc6 {[%emt 0:01:05]} 30. Qa3 {[%emt 0:07:36]} Nc4 {[%emt 0:02:01]} 31. Qb4 {[%emt 0:00:43]} Nd6 {[%emt 0:03:19]} 32. Bd5 {[%emt 0:00:19]} Qc5 {[%emt 0:00:37]} 33. Qa5 {[%emt 0:05:12]} Qc7 {[%emt 0:02:10]} 34. Qa6 {[%emt 0:00:36]} Qc5 {[%emt 0:01:06]} 35. Kh2 {[%emt 0:01:46]} Qc7 {[%emt 0:00:43]} 36. Bxf7 {[%emt 0:01:28]} Qc6 {[%emt 0:01:30]} 37. Qxc6 {[%emt 0:00:22]} Rxc6 {[%emt 0:00:01]} 38. Bd5 {[%emt 0:00:09]} Ra6 {[%emt 0:00:50]} 39. Rc3 {[%emt 0:01:08]} Nc4 {[%emt 0:00:59]} 40. Rb3 {[%emt 0:00:00]} Ra5 {[%emt 0:00:49]} 41. f3 {[%emt 0:02:18]} Nd2 {[%emt 0:05:26]} 42. Rc3 {[%emt 0:00:40]} Nc4 {[%emt 0:00:25]} 43. Rc2 {[%emt 0:00:15]} Kh6 {[%emt 0:04:15]} 44. Bf2 {[%emt 0:07:49]} Be7 {[%emt 0:02:37]} 45. Kg3 {[%emt 0:01:17]} g5 {[%emt 0:01:04]} 46. Kh3 {[%emt 0:01:53]} Ra6 {[%emt 0:02:26]} 47. Bb7 {[%emt 0:08:00]} Ra4 {[%emt 0:04:09]} 48. Bc6 {[%emt 0:00:49]} Rb4 {[%emt 0:02:38]} 49. Bxb5 {[%emt 0:02:41]} Rxb5 {[%emt 0:00:10]} 50. Rxc4 {[%emt 0:00:05]} Rb2 {[%emt 0:00:53]} 51. Be3 {[%emt 0:00:09]} Rxa2 {[%emt 0:01:11]} 52. Rc6+ {[%emt 0:00:12]} Kg7 {[%emt 0:00:31]} 53. Bxg5 {[%emt 0:00:07]} Bxg5 {[%emt 0:03:26]} 54. hxg5 {[%emt 0:00:08]} 1-0

[Event "EYCC 2017"]
[Site "Mamaia"]
[Date "2017.09.08"]
[Round "4"]
[White "Balajayeva, Khanim"]
[Black "Hrib, Andrada-Ioana"]
[Result "1-0"]
[ECO "C02"]
[WhiteElo "2342"]
[BlackElo "1759"]
[Annotator "NA"]
[PlyCount "93"]
[EventDate "2017.??.??"]
[EventType "swiss"]
[EventCountry "ROU"]
[SourceTitle "playchess.com"]
[Source "ChessBase"]
[SourceQuality "1"]
[TimeControl "40/5400+30:1800+30"]

1. e4 {[%emt 0:00:00]} e6 {[%emt 0:00:07]} 2. d4 {[%emt 0:00:00]} d5 {[%emt 0:00:03]} 3. e5 {[%emt 0:00:00]} c5 {[%emt 0:00:10]} 4. c3 {[%emt 0:01:04]} Nc6 {[%emt 0:00:22]} 5. Nf3 {[%emt 0:00:05]} Bd7 {[%emt 0:06:57]} 6. Na3 {[%emt 0:02:21]} Nge7 {[%emt 0:17:27]} 7. Bg5 {[%emt 0:19:13]} a6 {[%emt 0:04:21]} 8. Nc2 {[%emt 0:08:56]} h6 {[%emt 0:01:25]} 9. Bd2 {[%emt 0:06:14]} cxd4 {[%emt 0:09:07]} 10. cxd4 {[%emt 0:00:18]} Qb6 {[%emt 0:00:52]} 11. Bd3 {[%emt 0:06:48]} Na5 {[%emt 0:09:35]} 12. Bxa5 {[%emt 0:23:13]} Qxa5+ {[%emt 0:00:07]} 13. Qd2 {[%emt 0:00:03]} Qxd2+ {[%emt 0:00:17]} 14. Kxd2 {[%emt 0:00:18]} Nc6 {[%emt 0:01:29]} 15. Rac1 {[%emt 0:01:53]} Rc8 {[%emt 0:03:11]} 16. Na1 {[%emt 0:04:22]} Bb4+ {[%emt 0:16:27]} 17. Ke3 {[%emt 0:00:58]} Ba5 {[%emt 0:01:33]} 18. Nb3 {[%emt 0:05:51]} Bb6 {[%emt 0:00:09]} 19. Nc5 {[%emt 0:01:57]} Rc7 {[%emt 0:03:12]} 20. a3 {[%emt 0:02:23]} Ke7 {[%emt 0:02:49]} 21. b4 {[%emt 0:00:17]} Rhc8 {[%emt 0:01:16]} 22. Rc2 {[%emt 0:07:56]} a5 {[%emt 0:11:19]} 23. Nxd7 {[%emt 0:01:25]} Kxd7 {[%emt 0:00:28]} 24. b5 {[%emt 0:01:32]} Ne7 {[%emt 0:02:09]} 25. Rhc1 {[%emt 0:00:35]} Rxc2 {[%emt 0:02:27]} 26. Rxc2 {[%emt 0:00:03]} Rxc2 {[%emt 0:00:00]} 27. Bxc2 {[%emt 0:00:02]} Nc8 {[%emt 0:01:43]} 28. Nd2 {[%emt 0:01:21]} Bd8 {[%emt 0:01:12]} 29. Nb3 {[%emt 0:00:58]} b6 {[%emt 0:00:48]} 30. f4 {[%emt 0:00:32]} g6 {[%emt 0:02:28]} 31. g4 {[%emt 0:00:56]} Ne7 {[%emt 0:00:30]} 32. Nd2 {[%emt 0:01:16]} Ng8 {[%emt 0:00:57]} 33. Nf1 {[%emt 0:01:03]} Be7 {[%emt 0:00:03]} 34. a4 {[%emt 0:00:05]} Ba3 {[%emt 0:00:51]} 35. Ng3 {[%emt 0:00:37]} Bc1+ {[%emt 0:00:29]} 36. Kf3 {[%emt 0:00:03]} Bb2 {[%emt 0:00:08]} 37. Ne2 {[%emt 0:00:05]} Ba3 {[%emt 0:00:52]} 38. f5 {[%emt 0:01:53]} gxf5 {[%emt 0:00:01]} 39. gxf5 {[%emt 0:00:04]} Ne7 {[%emt 0:00:59]} 40. f6 {[%emt 0:00:00]} Ng6 {[%emt 0:01:23]} 41. Kg4 {[%emt 0:02:39]} Bb2 {[%emt 0:07:35]} 42. Bxg6 {[%emt 0:10:51]} fxg6 {[%emt 0:00:02]} 43. Nf4 {[%emt 0:00:04]} Bxd4 {[%emt 0:04:09]} 44. f7 {[%emt 0:01:50]} Bc5 {[%emt 0:11:43]} 45. Nxg6 {[%emt 0:01:22]} d4 {[%emt 0:00:06]} 46. f8=Q {[%emt 0:01:15]} Bxf8 {[%emt 0:00:03]} 47. Nxf8+ {[%emt 0:00:06]} 1-0

[Event "EYCC 2017"]
[Site "Mamaia"]
[Date "2017.09.08"]
[Round "4"]
[White "Travadon, Loic"]
[Black "Trimitzios, Petros"]
[Result "0-1"]
[ECO "C65"]
[WhiteElo "2342"]
[BlackElo "2191"]
[Annotator "NA"]
[PlyCount "118"]
[EventDate "2017.??.??"]
[EventType "swiss"]
[EventCountry "ROU"]
[SourceTitle "playchess.com"]
[Source "ChessBase"]
[SourceQuality "1"]
[TimeControl "40/5400+30:1800+30"]

1. e4 {[%emt 0:00:00]} e5 {[%emt 0:00:25]} 2. Nf3 {[%emt 0:00:00]} Nc6 {[%emt 0:00:30]} 3. Bb5 {[%emt 0:00:00]} Nf6 {[%emt 0:00:41]} 4. d3 {[%emt 0:04:46]} Bc5 {[%emt 0:01:00]} 5. Nc3 {[%emt 0:01:47]} O-O {[%emt 0:04:42]} 6. Bg5 {[%emt 0:06:59]} a6 {[%emt 0:03:02]} 7. Ba4 {[%emt 0:02:00]} b5 {[%emt 0:05:35]} 8. Bb3 {[%emt 0:00:59]} Be7 {[%emt 0:00:07]} 9. O-O {[%emt 0:02:44]} d6 {[%emt 0:00:29]} 10. Re1 {[%emt 0:08:23]} Be6 {[%emt 0:05:07]} 11. Nd5 {[%emt 0:05:58]} Nxd5 {[%emt 0:11:00]} 12. exd5 {[%emt 0:01:06]} Bg4 {[%emt 0:00:02]} 13. Bxe7 {[%emt 0:02:47]} Nxe7 {[%emt 0:00:01]} 14. h3 {[%emt 0:00:27]} Bxf3 {[%emt 0:04:33]} 15. Qxf3 {[%emt 0:00:01]} Ng6 {[%emt 0:00:20]} 16. a4 {[%emt 0:06:02]} f5 {[%emt 0:05:08]} 17. axb5 {[%emt 0:02:19]} axb5 {[%emt 0:00:18]} 18. Rxa8 {[%emt 0:03:46]} Qxa8 {[%emt 0:00:10]} 19. Qg3 {[%emt 0:09:46]} Qa5 {[%emt 0:07:32]} 20. c3 {[%emt 0:05:03]} b4 {[%emt 0:07:19]} 21. c4 {[%emt 0:00:13]} Rf6 {[%emt 0:04:14]} 22. d4 {[%emt 0:02:13]} Qa7 {[%emt 0:04:54]} 23. dxe5 {[%emt 0:06:45]} Nxe5 {[%emt 0:03:28]} 24. Qe3 {[%emt 0:02:40]} Qxe3 {[%emt 0:02:23]} 25. Rxe3 {[%emt 0:00:14]} Rf8 {[%emt 0:01:20]} 26. c5 {[%emt 0:04:35]} Kf7 {[%emt 0:02:50]} 27. c6 {[%emt 0:01:46]} Ra8 {[%emt 0:04:38]} 28. f4 {[%emt 0:00:42]} Ng6 {[%emt 0:00:16]} 29. g3 {[%emt 0:00:22]} Ne7 {[%emt 0:03:51]} 30. Kf2 {[%emt 0:01:34]} Ng8 {[%emt 0:03:08]} 31. Bd1 {[%emt 0:05:33]} Ra5 {[%emt 0:01:08]} 32. Bf3 {[%emt 0:00:30]} Nf6 {[%emt 0:00:08]} 33. Rd3 {[%emt 0:00:08]} Rc5 {[%emt 0:04:03]} 34. Ke3 {[%emt 0:00:22]} Ke7 {[%emt 0:00:40]} 35. Kd4 {[%emt 0:00:52]} Rc2 {[%emt 0:02:53]} 36. Re3+ {[%emt 0:01:12]} Kd8 {[%emt 0:01:48]} 37. Re2 {[%emt 0:02:54]} Rc1 {[%emt 0:00:57]} 38. g4 {[%emt 0:03:39]} Rd1+ {[%emt 0:01:31]} 39. Kc4 {[%emt 0:00:19]} fxg4 {[%emt 0:00:10]} 40. hxg4 {[%emt 0:00:00]} Rf1 {[%emt 0:00:09]} 41. Re3 {[%emt 0:00:55]} Nxg4 {[%emt 0:03:52]} 42. Bxg4 {[%emt 0:01:49]} Rxf4+ {[%emt 0:00:25]} 43. Kb5 {[%emt 0:00:06]} Rxg4 {[%emt 0:00:09]} 44. Rf3 {[%emt 0:00:26]} Re4 {[%emt 0:01:25]} 45. Ka6 {[%emt 0:00:27]} Ke8 {[%emt 0:01:43]} 46. Kb7 {[%emt 0:00:37]} Re7 {[%emt 0:00:09]} 47. Rf4 {[%emt 0:00:28]} g5 {[%emt 0:00:17]} 48. Rxb4 {[%emt 0:00:05]} h5 {[%emt 0:00:50]} 49. Ra4 {[%emt 0:01:52]} g4 {[%emt 0:00:08]} 50. Ra8+ {[%emt 0:00:28]} Kf7 {[%emt 0:00:01]} 51. Rh8 {[%emt 0:00:57]} Kg6 {[%emt 0:01:02]} 52. b4 {[%emt 0:01:11]} Rg7 {[%emt 0:01:29]} 53. Re8 {[%emt 0:04:33]} g3 {[%emt 0:00:19]} 54. b5 {[%emt 0:02:09]} g2 {[%emt 0:00:33]} 55. Re1 {[%emt 0:00:06]} h4 {[%emt 0:00:01]} 56. b6 {[%emt 0:01:16]} cxb6+ {[%emt 0:00:02]} 57. c7 {[%emt 0:01:48]} h3 {[%emt 0:00:19]} 58. Rg1 {[%emt 0:00:42]} Kf6 {[%emt 0:00:13]} 59. Kxb6 {[%emt 0:01:39]} Rxc7 {[%emt 0:00:13]} 0-1

[Event "EYCC 2017"]
[Site "Mamaia"]
[Date "2017.09.08"]
[Round "4"]
[White "Zachary, Matheo"]
[Black "Makarian, Rudik"]
[Result "0-1"]
[ECO "B47"]
[WhiteElo "2325"]
[BlackElo "2146"]
[Annotator "NA"]
[PlyCount "102"]
[EventDate "2017.??.??"]
[EventType "swiss"]
[EventCountry "ROU"]
[SourceTitle "playchess.com"]
[Source "ChessBase"]
[SourceQuality "1"]
[TimeControl "40/5400+30:1800+30"]

1. e4 {[%emt 0:00:00]} c5 {[%emt 0:00:04]} 2. Nf3 {[%emt 0:00:00]} e6 {[%emt 0:00:16]} 3. d4 {[%emt 0:00:03]} cxd4 {[%emt 0:01:16]} 4. Nxd4 {[%emt 0:00:06]} Nc6 {[%emt 0:00:11]} 5. Nc3 {[%emt 0:00:51]} Qc7 {[%emt 0:00:20]} 6. Be2 {[%emt 0:00:36]} Nf6 {[%emt 0:00:19]} 7. O-O {[%emt 0:00:41]} Be7 {[%emt 0:00:14]} 8. Kh1 {[%emt 0:02:07]} O-O {[%emt 0:00:39]} 9. f4 {[%emt 0:02:53]} d6 {[%emt 0:00:26]} 10. Be3 {[%emt 0:01:00]} a6 {[%emt 0:00:20]} 11. a4 {[%emt 0:00:29]} Nxd4 {[%emt 0:00:14]} 12. Qxd4 {[%emt 0:02:53]} Bd7 {[%emt 0:00:55]} 13. Bg1 {[%emt 0:03:44]} e5 {[%emt 0:03:11]} 14. Qe3 {[%emt 0:02:58]} exf4 {[%emt 0:06:41]} 15. Rxf4 {[%emt 0:05:13]} Be6 16. Rd1 {[%emt 0:18:47]} Nd7 {[%emt 0:02:36]} 17. Qg3 {[%emt 0:04:20]} Bf6 {[%emt 0:10:13]} 18. Rf3 {[%emt 0:07:12]} Be5 {[%emt 0:00:40]} 19. Qh4 {[%emt 0:01:52]} Rac8 {[%emt 0:07:06]} 20. Rdf1 {[%emt 0:04:05]} Qd8 {[%emt 0:12:23]} 21. Qe1 {[%emt 0:02:40]} Qa5 {[%emt 0:01:56]} 22. Rd3 {[%emt 0:13:13]} Qb4 {[%emt 0:08:03]} 23. Qd2 {[%emt 0:07:10]} Nc5 {[%emt 0:03:40]} 24. Bxc5 {[%emt 0:01:33]} Rxc5 {[%emt 0:00:10]} 25. Nd5 {[%emt 0:02:31]} Qxe4 {[%emt 0:17:16]} 26. Nf4 {[%emt 0:03:04]} Bd7 {[%emt 0:07:21]} 27. b3 {[%emt 0:01:59]} b5 {[%emt 0:02:16]} 28. axb5 axb5 {[%emt 0:00:53]} 29. Bd1 {[%emt 0:04:35]} Re8 {[%emt 0:01:23]} 30. Rdf3 {[%emt 0:00:51]} Qb7 {[%emt 0:01:22]} 31. Nd3 {[%emt 0:00:57]} Rc7 {[%emt 0:05:03]} 32. Rxf7 {[%emt 0:00:46]} Bc6 {[%emt 0:00:27]} 33. Nxe5 {[%emt 0:01:18]} dxe5 {[%emt 0:00:27]} 34. R7f2 {[%emt 0:01:10]} Rce7 {[%emt 0:03:55]} 35. Bh5 {[%emt 0:01:07]} g6 {[%emt 0:00:30]} 36. Bg4 {[%emt 0:00:34]} e4 {[%emt 0:01:12]} 37. Qh6 {[%emt 0:00:28]} Rf7 {[%emt 0:03:28]} 38. Rxf7 {[%emt 0:00:24]} Qxf7 {[%emt 0:00:01]} 39. Rxf7 {[%emt 0:00:09]} Kxf7 {[%emt 0:00:04]} 40. Qxh7+ {[%emt 0:00:00]} Kf6 {[%emt 0:00:05]} 41. Qh4+ {[%emt 0:01:42]} Ke5 {[%emt 0:00:57]} 42. Qg5+ {[%emt 0:00:32]} Kd6 {[%emt 0:00:04]} 43. Qxg6+ {[%emt 0:00:14]} Kc5 {[%emt 0:00:08]} 44. Be2 {[%emt 0:01:02]} Ra8 {[%emt 0:00:53]} 45. h4 {[%emt 0:00:11]} Ra2 {[%emt 0:00:04]} 46. Qg5+ {[%emt 0:00:48]} Kb6 {[%emt 0:00:50]} 47. Qe3+ {[%emt 0:00:04]} Kb7 {[%emt 0:00:06]} 48. c4 {[%emt 0:00:28]} b4 {[%emt 0:00:14]} 49. h5 {[%emt 0:00:07]} Rc2 {[%emt 0:00:06]} 50. h6 {[%emt 0:00:14]} Rc3 {[%emt 0:00:02]} 51. Qc5 {[%emt 0:00:49]} e3 0-1